bitfinex-derivatives/quotes_SOLF0:USTF0_20250911
["timestamp","ask_amount","ask_price","bid_price","bid_amount"]
[1757577133798,3.51817615,223.32,223.31,0.03409671]
[1757577134002,10.76817615,223.32,223.31,0.03409671]
[1757577135809,11.20817615,223.32,223.31,0.03409671]
[1757577141011,7.69,223.32,223.31,0.03409671]
[1757577144123,13.78272334,223.32,223.2,7.19]
[1757577144319,7.25,223.3,223.2,7.19]
[1757577144525,7.25,223.28,223.2,7.19]
[1757577145322,0.03343792,223.26,223.2,7.19]
[1757577145523,7.28343792,223.26,223.2,7.19]
[1757577149227,0.03343792,223.26,223.2,7.19]
[1757577149531,7.36,223.35,223.24,7.05]
[1757577150619,0.03209109,223.32,223.27,0.02899378]
[1757577150816,0.03209109,223.32,223.28,7.05]
[1757577152227,0.03209109,223.32,223.27,0.02899378]
[1757577152428,0.03209109,223.32,223.28,7.05]
[1757577152627,0.03209109,223.32,223.27,0.02899378]
[1757577153229,0.03209109,223.32,223.28,7.05]
[1757577153827,0.03209109,223.32,223.27,0.02899378]
[1757577154120,0.03209109,223.32,223.28,7.05]
[1757577154328,0.03209109,223.32,223.27,0.02899378]
[1757577154723,0.03209109,223.32,223.28,7.05]
[1757577156429,0.03209109,223.32,223.27,0.02899378]
[1757577156728,0.03209109,223.32,223.28,7.05]
[1757577157722,0.03209109,223.32,223.27,0.02899378]
[1757577158325,0.03209109,223.32,223.28,7.05]
[1757577158829,0.03209109,223.32,223.27,0.02899378]
[1757577159031,0.03209109,223.32,223.28,7.05]
[1757577159322,0.03209109,223.32,223.27,0.02899378]
[1757577159522,0.03209109,223.32,223.28,7.05]
[1757577159931,0.03209109,223.32,223.27,0.02899378]
[1757577160124,0.03209109,223.32,223.28,7.05]
[1757577160321,0.03209109,223.32,223.27,0.02899378]
[1757577160723,0.03209109,223.32,223.28,7.05]
[1757577160934,7.39209109,223.32,223.27,0.02899378]
[1757577161126,7.39209109,223.32,223.28,7.05]
[1757577161426,7.36,223.31,223.28,7.05]
[1757577162524,7.39209109,223.32,223.29,7.05]
[1757577163432,7.36,223.31,223.27,0.02899378]
[1757577163633,7.36,223.31,223.27,7.07899378]
[1757577163834,7.36,223.31,223.28,7.05]
[1757577165830,7.36,223.31,223.27,0.02899378]
[1757577166137,0.03209109,223.32,223.27,0.02899378]
[1757577166338,0.03209109,223.32,223.27,7.07899378]
[1757577166727,7.36,223.31,223.27,7.07899378]
[1757577166933,0.03209109,223.32,223.27,7.07899378]
[1757577167441,7.36,223.31,223.27,7.07899378]
[1757577168042,1.68324413,223.32,223.27,7.07899378]
[1757577168543,7.36,223.31,223.27,7.07899378]
[1757577168742,7.36,223.31,223.27,0.02899378]
[1757577168942,7.36,223.31,223.28,7.05]
[1757577169242,1.68324413,223.32,223.28,7.05]
[1757577169439,7.36,223.31,223.27,0.02899378]
[1757577169738,1.68324413,223.32,223.27,0.02899378]
[1757577169938,7.36,223.31,223.27,0.02899378]
[1757577170934,1.68324413,223.32,223.27,0.02899378]
[1757577171837,7.36,223.31,223.27,0.02899378]
[1757577172237,1.68324413,223.32,223.27,0.02899378]
[1757577172436,7.36,223.3,223.27,0.02899378]
[1757577172732,1.68324413,223.32,223.27,0.02899378]
[1757577172938,3.54983162,223.31,223.27,0.02899378]
[1757577173142,1.68324413,223.32,223.27,0.02899378]
[1757577173443,3.55005578,223.31,223.27,0.02899378]
[1757577173740,1.68324413,223.32,223.27,0.02899378]
[1757577173936,3.55005578,223.31,223.27,0.02899378]
[1757577174133,1.65115304,223.29,223.27,0.02899378]
[1757577174337,7.36,223.28,223.27,0.02899378]
[1757577175741,7.36,223.31,223.28,7.05]
[1757577175944,0.03209109,223.32,223.28,7.05]
[1757577176147,0.03209109,223.32,223.27,0.02899378]
[1757577176347,7.39209109,223.32,223.28,7.05]
[1757577176646,7.39209109,223.32,223.27,0.02899378]
[1757577176847,7.39209109,223.32,223.28,7.05]
[1757577177144,7.39209109,223.32,223.27,0.02899378]
[1757577177542,7.39209109,223.32,223.28,7.25]
[1757577177746,7.39209109,223.32,223.27,0.02899378]
[1757577177946,7.39209109,223.32,223.28,7.25]
[1757577178444,7.26,223.31,223.28,7.25]
[1757577178746,0.03209109,223.32,223.27,0.02899378]
[1757577178943,7.29209109,223.32,223.28,7.25]
[1757577179144,7.29209109,223.32,223.27,0.02899378]
[1757577179343,7.29209109,223.32,223.28,7.25]
[1757577179739,7.29209109,223.32,223.27,0.02899378]
[1757577179944,7.29209109,223.32,223.28,7.25]
[1757577180843,7.29209109,223.32,223.27,0.02899378]
[1757577181234,7.29209109,223.32,223.28,7.25]
[1757577181945,7.29209109,223.32,223.27,0.02899378]
[1757577182146,0.03209109,223.32,223.28,7.25]
[1757577182849,0.03209109,223.32,223.27,0.02899378]
[1757577183060,0.03209109,223.32,223.28,7.25]
[1757577183446,0.03209109,223.32,223.27,0.02899378]
[1757577183646,0.03209109,223.32,223.28,7.25]
[1757577183856,0.03209109,223.32,223.27,0.02899378]
[1757577184042,0.03209109,223.32,223.28,7.25]
[1757577184247,0.03209109,223.32,223.27,1.68014682]
[1757577184450,0.03209109,223.32,223.28,7.25]
[1757577184645,0.03209109,223.32,223.27,1.68014682]
[1757577184852,0.03209109,223.32,223.27,0.02899378]
[1757577185053,0.03209109,223.32,223.28,7.25]
[1757577185551,0.03209109,223.32,223.3,7.25]
[1757577185854,0.03209109,223.32,223.29,1.65115304]
[1757577186850,0.03209109,223.32,223.3,7.25]
[1757577187049,0.03209109,223.32,223.29,1.65115304]
[1757577187455,0.03209109,223.32,223.3,7.25]
[1757577188652,0.03209109,223.32,223.27,0.02899378]
[1757577188854,0.03209109,223.32,223.28,7.25]
[1757577189355,0.03209109,223.32,223.27,0.02899378]
[1757577189856,0.03209109,223.32,223.28,7.25]
[1757577190058,0.03209109,223.32,223.27,0.02899378]
[1757577191057,0.03209109,223.32,223.28,7.25]
[1757577191455,0.03209109,223.32,223.27,0.02899378]
[1757577191756,0.03209109,223.32,223.28,7.25]
[1757577192158,0.03209109,223.32,223.27,0.02899378]
[1757577192553,0.03209109,223.32,223.28,7.25]
[1757577192760,0.03209109,223.32,223.27,0.02899378]
[1757577193659,0.03209109,223.32,223.28,7.25]
[1757577193956,0.03209109,223.32,223.27,0.02899378]
[1757577194161,0.03209109,223.32,223.28,7.25]
[1757577195462,7.26,223.31,223.28,7.25]
[1757577195764,7.26,223.31,223.27,0.02899378]
[1757577196063,7.26,223.31,223.28,7.25]
[1757577196256,7.26,223.31,223.27,0.02899378]
[1757577197061,7.26,223.31,223.28,7.25]
[1757577197653,7.26,223.31,223.27,0.02899378]
[1757577197861,7.26,223.31,223.28,7.25]
[1757577198058,7.26,223.31,223.27,0.02899378]
[1757577198261,7.26,223.31,223.28,7.25]
[1757577203667,7.26,223.31,223.27,0.02899378]
[1757577203869,7.26,223.31,223.28,7.25]
[1757577204569,7.26,223.31,223.27,0.02899378]
[1757577204770,0.03209109,223.32,223.27,0.02899378]
[1757577205966,0.03209109,223.32,223.28,7.25]
[1757577206178,7.29209109,223.32,223.27,0.02899378]
[1757577206366,7.29209109,223.32,223.28,7.25]
[1757577206666,7.29209109,223.32,223.27,0.02899378]
[1757577206869,7.29209109,223.32,223.28,7.25]
[1757577207170,7.29209109,223.32,223.27,0.02899378]
[1757577207471,7.29209109,223.32,223.28,7.3]
[1757577207771,7.17,223.31,223.28,7.3]
[1757577207972,0.03209109,223.32,223.27,7.32899378]
[1757577208366,7.17,223.31,223.27,7.32899378]
[1757577208560,0.03209109,223.32,223.27,7.32899378]
[1757577209073,7.17,223.31,223.28,7.3]
[1757577211773,0.03209109,223.32,223.28,7.3]
[1757577212174,7.17,223.31,223.28,7.3]
[1757577212374,0.03209109,223.32,223.28,7.3]
[1757577212576,7.17,223.31,223.28,7.3]
[1757577212971,7.17,223.31,223.27,0.02899378]
[1757577213168,0.03209109,223.32,223.27,0.02899378]
[1757577213373,0.03209109,223.32,223.28,7.3]
[1757577213571,7.20209109,223.32,223.28,7.3]
[1757577213774,0.03209109,223.32,223.28,7.3]
[1757577213974,7.17,223.31,223.28,7.3]
[1757577214570,7.17,223.31,223.22,7.45109772]
[1757577214571,7.61,223.3,223.2,4.96739848]
[1757577214773,7.17,223.25,223.17,7.3]
[1757577215370,3.76696448,223.24,223.17,7.3]
[1757577215566,7.17,223.25,223.18,7.3]
[1757577215967,0.03325672,223.23,223.18,7.3]
[1757577216279,0.03325672,223.23,223.17,7.3]
[1757577221377,7.20325672,223.23,223.17,7.3]
[1757577234210,0.03325672,223.23,223.17,7.3]
[1757577249716,6.97325672,223.23,223.17,7.3]
[1757577257420,3.70860423,223.22,223.14,4.96739848]
[1757577257619,6.97325672,223.23,223.15,6.97]
[1757577257818,3.70860423,223.22,223.15,6.97]
[1757577258018,6.97325672,223.23,223.15,6.97]
[1757577258322,3.70864895,223.22,223.15,6.97]
[1757577258522,6.97325672,223.23,223.15,6.97]
[1757577258724,3.71088086,223.22,223.15,6.97]
[1757577259024,6.97325672,223.23,223.15,6.97]
[1757577259225,3.71090463,223.22,223.16,6.97]
[1757577259423,3.71090463,223.21,223.15,4.96739848]
[1757577259622,6.97325672,223.23,223.16,6.97]
[1757577259823,3.71383912,223.22,223.16,6.97]
[1757577260126,3.71383912,223.21,223.15,4.96739848]
[1757577260323,6.97325672,223.23,223.16,6.97]
[1757577260628,3.71378592,223.22,223.17,6.97]
[1757577260816,3.71378592,223.21,223.17,6.97]
[1757577261020,6.97325672,223.23,223.17,6.97]
[1757577261220,3.71378585,223.22,223.17,6.97]
[1757577261420,3.71378585,223.21,223.17,6.97]
[1757577261621,6.97325672,223.23,223.17,6.97]
[1757577261821,3.71386369,223.22,223.17,6.97]
[1757577262016,3.71386369,223.21,223.16,4.96739848]
[1757577262227,0.03325672,223.23,223.17,6.97]
[1757577262430,3.71398754,223.22,223.17,6.97]
[1757577262723,3.71398754,223.21,223.16,4.96739848]
[1757577262926,6.97325672,223.23,223.17,6.97]
[1757577263127,3.73312863,223.22,223.16,4.96739848]
[1757577263325,3.73312863,223.21,223.16,4.96739848]
[1757577263532,0.03325672,223.23,223.17,6.97]
[1757577263718,3.73327105,223.22,223.16,4.96739848]
[1757577263923,3.73327105,223.21,223.17,6.97]
[1757577264129,0.03325672,223.23,223.17,6.97]
[1757577264325,3.73330722,223.22,223.17,6.97]
[1757577264525,3.73330722,223.21,223.16,4.96739848]
[1757577264730,6.97325672,223.23,223.17,6.97]
[1757577264925,3.73343334,223.22,223.17,6.97]
[1757577265230,3.73343334,223.21,223.17,6.97]
[1757577265431,6.97325672,223.23,223.17,6.97]
[1757577265622,3.73361745,223.22,223.17,6.97]
[1757577265822,3.73361745,223.21,223.17,6.97]
[1757577266021,6.97325672,223.23,223.17,6.97]
[1757577266328,3.73365611,223.22,223.16,4.96739848]
[1757577266529,3.73365611,223.21,223.17,6.97]
[1757577266728,6.97325672,223.23,223.17,6.97]
[1757577267030,3.73382585,223.22,223.16,4.96739848]
[1757577267226,3.73382585,223.21,223.17,7.15]
[1757577267427,6.98325672,223.23,223.17,7.15]
[1757577267630,3.73406184,223.22,223.16,4.96739848]
[1757577267929,3.73406184,223.21,223.17,7.15]
[1757577268126,6.98325672,223.23,223.17,7.15]
[1757577268326,3.73410097,223.22,223.16,4.96739848]
[1757577268530,3.73410097,223.21,223.16,4.96739848]
[1757577268726,6.98325672,223.23,223.17,7.15]
[1757577269023,3.73432991,223.22,223.17,7.15]
[1757577269223,0.03325672,223.23,223.19,4.96739848]
[1757577269425,0.03325672,223.23,223.2,7.15]
[1757577269826,0.03325672,223.23,223.19,4.96739848]
[1757577270027,0.03325672,223.23,223.2,7.15]
[1757577270226,0.03325672,223.23,223.19,4.96739848]
[1757577270630,0.03325672,223.23,223.2,7.15]
[1757577271119,0.03325672,223.23,223.19,4.96739848]
[1757577271322,0.03325672,223.23,223.2,7.15]
[1757577271524,0.03325672,223.23,223.19,4.96739848]
[1757577272029,0.03325672,223.23,223.2,7.15]
[1757577272226,0.03325672,223.23,223.19,4.96739848]
[1757577272931,0.03325672,223.23,223.2,7.15]
[1757577273125,0.03325672,223.23,223.19,4.96739848]
[1757577273325,0.03325672,223.23,223.2,7.15]
[1757577273526,0.03325672,223.23,223.19,4.96739848]
[1757577274426,0.03325672,223.23,223.2,7.15]
[1757577274830,0.03325672,223.23,223.19,4.96739848]
[1757577275027,0.03325672,223.23,223.2,7.15]
[1757577275227,0.03325672,223.23,223.19,4.96739848]
[1757577275624,0.03325672,223.23,223.2,7.15]
[1757577276023,0.03325672,223.23,223.19,4.96739848]
[1757577276229,0.03325672,223.23,223.19,7.15]
[1757577277427,0.03325672,223.23,223.18,4.96739848]
[1757577277822,0.03325672,223.23,223.19,7.15]
[1757577278229,0.03325672,223.23,223.18,4.96739848]
[1757577278427,0.03325672,223.23,223.19,7.15]
[1757577278628,0.03325672,223.23,223.18,4.96739848]
[1757577278829,0.03325672,223.23,223.19,7.15]
[1757577282834,0.03325672,223.23,223.18,4.96739848]
[1757577283044,0.03325672,223.23,223.19,7.15]
[1757577283530,0.03325672,223.23,223.18,4.96739848]
[1757577284427,0.03325672,223.23,223.19,7.15]
[1757577284933,0.03325672,223.23,223.18,4.96739848]
[1757577285729,0.03325672,223.23,223.19,7.15]
[1757577285936,6.95,223.33,223.22,7.15]
[1757577286137,3.61096942,223.32,223.25,7.15]
[1757577286336,6.95,223.33,223.25,7.15]
[1757577286533,3.60881355,223.32,223.25,7.15]
[1757577286734,6.95,223.33,223.25,7.15]
[1757577293138,6.95,223.36,223.25,7.15]
[1757577293945,6.95,223.36,223.27,7.15]
[1757577294833,0.0303681,223.34,223.3,7.15]
[1757577295430,0.0303681,223.34,223.29,0.03020218]
[1757577295639,0.0303681,223.34,223.3,7.15]
[1757577295940,0.0303681,223.34,223.29,0.03020218]
[1757577296242,0.0303681,223.34,223.3,7.15]
[1757577296442,0.0303681,223.34,223.29,0.03020218]
[1757577296738,0.0303681,223.34,223.3,7.15]
[1757577296934,0.0303681,223.34,223.29,0.03020218]
[1757577297334,0.0303681,223.34,223.3,7.57]
[1757577298041,7.0403681,223.34,223.29,0.03020218]
[1757577298236,0.0303681,223.34,223.29,0.03020218]
[1757577298536,0.0303681,223.34,223.3,7.57]
[1757577298738,0.0303681,223.34,223.29,0.03020218]
[1757577299136,0.0303681,223.34,223.3,7.57]
[1757577299538,0.0303681,223.34,223.29,0.03020218]
[1757577299730,0.0303681,223.34,223.3,7.57]
[1757577300131,0.0303681,223.34,223.29,0.03020218]
[1757577300939,0.0303681,223.34,223.3,7.57]
[1757577301744,0.0303681,223.34,223.29,0.03020218]
[1757577301944,0.0303681,223.34,223.3,7.57]
[1757577302140,0.0303681,223.34,223.29,0.03020218]
[1757577302448,7.0403681,223.34,223.3,7.57]
[1757577302643,7.0403681,223.34,223.29,0.03020218]
[1757577302849,0.0303681,223.34,223.3,7.57]
[1757577303053,0.0303681,223.34,223.29,0.03020218]
[1757577303249,0.0303681,223.34,223.3,7.57]
[1757577304350,7.0403681,223.34,223.3,7.57]
[1757577304654,7.0403681,223.34,223.29,0.03020218]
[1757577305052,7.0403681,223.34,223.3,7.57]
[1757577305554,7.0403681,223.34,223.29,0.03020218]
[1757577306150,7.0403681,223.34,223.3,7.57]
[1757577306546,7.0403681,223.34,223.29,0.03020218]
[1757577306848,7.0403681,223.34,223.3,7.57]
[1757577307250,0.0303681,223.34,223.3,7.57]
[1757577307455,0.0303681,223.34,223.29,0.03020218]
[1757577307957,0.0303681,223.34,223.3,7.57]
[1757577308149,0.0303681,223.34,223.29,0.03020218]
[1757577308456,0.0303681,223.34,223.3,7.57]
[1757577309056,7.01,223.41,223.31,1.65263622]
[1757577309358,7.01,223.41,223.32,7.57]
[1757577310356,7.01,223.41,223.34,0.03300326]
[1757577311955,7.01,223.38,223.34,0.03300326]
[1757577312154,1.65263622,223.39,223.34,0.03300326]
[1757577312358,7.01,223.38,223.32,7.57]
[1757577312656,1.65263622,223.39,223.34,0.03307513]
[1757577313255,7.01,223.38,223.34,0.03307513]
[1757577313653,1.65263622,223.39,223.34,0.03307513]
[1757577313956,7.01,223.38,223.34,0.03307513]
[1757577315155,1.65263622,223.39,223.34,0.03307513]
[1757577315454,7.01,223.38,223.34,0.03307513]
[1757577324967,1.65263622,223.36,223.34,0.03307513]
[1757577325165,7.01,223.35,223.34,0.03307513]
[1757577331071,10.63927847,223.35,223.34,0.03307513]
[1757577341668,7.01,223.35,223.34,0.03307513]
[1757577356283,10.51320989,223.35,223.34,0.03307513]
[1757577376601,7.01,223.35,223.34,0.03307513]
[1757577376800,10.51918847,223.35,223.34,0.03307513]
[1757577378404,10.51929018,223.35,223.34,0.03307513]
[1757577394704,13.91151808,223.35,223.28,7.58]
[1757577394909,6.90151808,223.34,223.28,7.58]
[1757577395109,7.31,223.32,223.28,7.58]
[1757577395313,7.31,223.4,223.28,7.58]
[1757577395616,7.31,223.38,223.28,7.58]
[1757577395804,7.31,223.36,223.28,7.58]
[1757577396007,7.31,223.34,223.28,7.58]
[1757577396208,3.5105432,223.33,223.28,7.58]
[1757577396409,7.31,223.31,223.28,7.58]
[1757577400112,78.23769639,223.41,223.26,29.52]
[1757577400312,1.65195146,223.33,223.24,12.57899518]
[1757577400512,7.31,223.31,223.24,12.57899518]
[1757577402219,7.31,223.32,223.24,7.58]
[1757577405721,7.31,223.29,223.21,7.58]
[1757577405916,7.31,223.27,223.21,7.58]
[1757577406613,7.33980255,223.26,223.23,7.58]
[1757577406817,0.02980255,223.26,223.23,7.58]
[1757577407122,7.31,223.28,223.2,7.58]
[1757577411730,1.65195146,223.27,223.17,12.57899518]
[1757577411918,7.31,223.26,223.17,7.58]
[1757577412117,8.96195146,223.26,223.17,7.58]
[1757577428036,1.65195146,223.31,223.17,7.58]
[1757577428236,7.2,223.3,223.17,7.58]
[1757577429137,7.2,223.3,223.2,6.96]
[1757577430335,7.2,223.3,223.23,6.96]
[1757577430543,7.2,223.3,223.24,6.96]
[1757577441547,1.65195146,223.26,223.2,6.96]
[1757577441752,7.2,223.25,223.2,6.96]
[1757577442153,7.2,223.25,223.19,115.62]
[1757577442654,7.2,223.25,223.2,6.96]
[1757577442851,1.65195146,223.29,223.2,6.96]
[1757577443253,7.2,223.28,223.2,6.96]
[1757577461568,3.72411768,223.27,223.2,6.96]
[1757577461774,7.04,223.31,223.2,6.96]
[1757577462067,7.04,223.29,223.2,6.96]
[1757577462261,7.04,223.27,223.2,6.96]
[1757577462663,2.58175939,223.32,223.18,115.6]
[1757577462865,7.20515188,223.31,223.18,115.6]
[1757577463169,7.04,223.29,223.18,115.6]
[1757577463369,7.20515188,223.28,223.18,115.6]
[1757577463570,7.04,223.26,223.18,115.6]
[1757577464370,7.04,223.26,223.18,6.98]
[1757577464561,7.04,223.26,223.18,115.6]
[1757577467666,7.04,223.26,223.19,6.98]
[1757577480185,7.14,223.24,223.19,6.98]
[1757577480383,7.14,223.27,223.19,6.98]
[1757577480584,7.14,223.25,223.19,6.98]
[1757577480778,7.14,223.23,223.19,6.98]
[1757577481084,7.14,223.27,223.18,116.27]
[1757577481273,2.58175939,223.28,223.18,116.27]
[1757577481274,7.14,223.25,223.18,116.27]
[1757577481476,7.14,223.27,223.18,116.27]
[1757577481674,7.20604708,223.26,223.18,116.27]
[1757577481883,7.14,223.24,223.18,116.27]
[1757577482283,7.14,223.24,223.18,7.65]
[1757577486987,3.6928172,223.23,223.18,7.65]
[1757577487181,2.58175939,223.28,223.18,7.65]
[1757577487385,7.14,223.26,223.18,7.65]
[1757577487587,7.14,223.24,223.18,7.65]
[1757577487786,3.69283112,223.23,223.18,7.65]
[1757577487986,7.14,223.27,223.18,7.65]
[1757577488189,7.14,223.25,223.18,7.65]
[1757577488389,7.14,223.23,223.18,7.65]
[1757577488592,7.14,223.27,223.18,7.65]
[1757577488790,7.14,223.25,223.18,7.65]
[1757577489094,7.14,223.23,223.18,7.65]
[1757577489392,7.14,223.27,223.18,7.65]
[1757577489593,7.14,223.25,223.18,7.65]
[1757577489792,9.99962112,223.24,223.15,7.65]
[1757577489986,7.14,223.22,223.15,7.65]
[1757577490188,7.14,223.2,223.15,7.65]
[1757577490382,7.14,223.23,223.15,7.65]
[1757577490587,7.14,223.21,223.15,7.65]
[1757577490785,3.69165162,223.2,223.15,7.65]
[1757577490991,2.58175939,223.24,223.15,7.65]
[1757577490992,7.14,223.23,223.15,7.65]
[1757577491294,7.14,223.21,223.15,7.65]
[1757577491993,9.72175939,223.24,223.15,7.65]
[1757577492195,7.41445115,223.23,223.15,7.65]
[1757577492391,7.41445115,223.22,223.15,7.65]
[1757577492590,3.69100475,223.21,223.15,7.65]
[1757577492791,9.72175939,223.24,223.15,7.65]
[1757577492992,7.41331453,223.23,223.15,7.65]
[1757577493186,3.69043765,223.22,223.15,7.65]
[1757577493388,3.69043765,223.21,223.15,7.65]
[1757577493592,9.72175939,223.24,223.15,7.65]
[1757577493793,3.68965718,223.23,223.15,7.65]
[1757577493993,9.72175939,223.24,223.15,7.65]
[1757577494297,3.68965718,223.23,223.15,7.65]
[1757577494595,9.72175939,223.24,223.15,7.65]
[1757577494798,3.68979549,223.23,223.15,7.65]
[1757577494994,7.14,223.24,223.15,7.65]
[1757577495194,3.68979549,223.23,223.15,7.65]
[1757577495393,7.14,223.24,223.15,7.65]
[1757577495594,3.68980075,223.23,223.15,7.65]
[1757577495794,7.14,223.24,223.15,7.65]
[1757577495999,3.68980075,223.23,223.15,7.65]
[1757577496199,3.68992184,223.22,223.15,7.65]
[1757577496397,7.14,223.24,223.15,7.65]
[1757577496602,3.68984808,223.23,223.15,7.65]
[1757577496900,3.68984808,223.22,223.15,7.65]
[1757577497102,7.14,223.24,223.15,7.65]
[1757577497302,3.68984808,223.23,223.15,7.65]
[1757577497499,3.68984808,223.22,223.15,7.65]
[1757577497698,7.14,223.24,223.15,7.65]
[1757577497898,3.68993804,223.23,223.15,7.65]
[1757577498098,3.68993804,223.22,223.15,7.65]
[1757577498300,7.14,223.24,223.15,7.65]
[1757577498600,3.69007164,223.23,223.15,7.65]
[1757577498798,3.69007164,223.22,223.15,7.65]
[1757577499007,7.14,223.24,223.15,7.65]
[1757577499302,3.69007164,223.23,223.15,7.65]
[1757577499492,7.14,223.24,223.15,7.65]
[1757577499694,7.14,223.27,223.15,7.65]
[1757577499890,7.4126331,223.26,223.15,12.64899518]
[1757577500092,3.6900738,223.25,223.17,7.65]
[1757577500296,7.14,223.27,223.17,7.65]
[1757577500502,3.6903266,223.26,223.17,7.65]
[1757577500702,3.6903266,223.25,223.17,7.65]
[1757577500904,7.14,223.27,223.17,7.65]
[1757577501103,7.14,223.25,223.17,7.65]
[1757577501304,3.69035548,223.24,223.17,7.65]
[1757577501505,7.14,223.25,223.17,7.65]
[1757577501803,3.69075127,223.24,223.17,7.65]
[1757577502004,7.14,223.25,223.17,7.65]
[1757577502201,3.69075127,223.24,223.17,7.65]
[1757577502401,7.14,223.25,223.17,7.65]
[1757577502600,3.69118313,223.24,223.17,7.65]
[1757577502796,5.00949983,223.35,223.18,0.44]
[1757577502997,3.69118313,223.34,223.24,7.65]
[1757577503200,7.14,223.39,223.28,7.65]
[1757577503405,3.65991166,223.38,223.28,7.65]
[1757577503605,3.65991166,223.37,223.28,7.65]
[1757577503807,3.65967747,223.36,223.28,7.65]
[1757577504007,7.14,223.39,223.28,7.65]
[1757577505510,7.14,223.39,223.3,7.65]
[1757577505702,7.14,223.39,223.31,4.58425079]
[1757577505910,7.14,223.39,223.32,4.58425079]
[1757577506206,7.14,223.39,223.33,4.58425079]
[1757577506407,7.14,223.4,223.3,7.65]
[1757577512706,7.14,223.4,223.3,11.37245797]
[1757577512906,2.58175939,223.41,223.3,11.37245797]
[1757577513307,7.41,223.4,223.3,11.37245797]
[1757577513910,2.58175939,223.41,223.3,11.37245797]
[1757577514210,7.41,223.4,223.3,11.37245797]
[1757577515209,7.41,223.4,223.3,7.65]
[1757577522429,9.06065513,223.4,223.3,7.65]
[1757577523322,9.06065513,223.4,223.31,3.72245797]
[1757577523525,9.06065513,223.4,223.32,6.97]
[1757577524122,0.7792644,223.47,223.32,6.97]
[1757577524322,1.65065513,223.42,223.32,6.97]
[1757577524523,1.65065513,223.42,223.32,13.33963782]
[1757577524825,1.65065513,223.42,223.33,6.97]
[1757577527927,7.41,223.41,223.33,6.97]
[1757577537634,7.04,223.38,223.32,13.69011552]
[1757577537834,7.04,223.35,223.29,11.20245797]
[1757577538044,7.04,223.35,223.29,7.48]
[1757577539333,7.04,223.35,223.29,11.20245797]
[1757577541036,7.04,223.35,223.22,300.82]
[1757577541037,7.04,223.29,223.25,3.72332652]
[1757577541238,7.04,223.26,223.19,4.99899518]
[1757577541436,7.04,223.26,223.18,7.48]
[1757577541437,1.65065513,223.25,223.18,12.47899518]
[1757577541634,7.04,223.26,223.19,7.48]
[1757577541939,7.07305186,223.25,223.21,7.48]
[1757577542338,7.07305186,223.25,223.2,0.03047211]
[1757577542735,7.07305186,223.25,223.21,7.48]
[1757577543140,7.07305186,223.25,223.2,0.03047211]
[1757577543341,7.07305186,223.25,223.21,7.48]
[1757577543645,7.07305186,223.25,223.2,0.03047211]
[1757577543836,7.07305186,223.25,223.21,7.48]
[1757577544434,0.03305186,223.25,223.21,7.48]
[1757577544633,0.03305186,223.25,223.2,0.03047211]
[1757577544839,0.03305186,223.25,223.21,7.48]
[1757577545045,0.03305186,223.25,223.2,0.03047211]
[1757577545344,0.03305186,223.25,223.21,7.48]
[1757577545545,7.07305186,223.25,223.21,7.48]
[1757577545743,7.07305186,223.25,223.2,0.03047211]
[1757577545945,7.07305186,223.25,223.21,7.48]
[1757577546246,7.07305186,223.25,223.2,0.03047211]
[1757577546447,0.03305186,223.25,223.21,7.48]
[1757577547044,0.03305186,223.25,223.2,0.03047211]
[1757577547247,0.03305186,223.25,223.21,7.48]
[1757577547745,0.03305186,223.25,223.2,0.03047211]
[1757577548144,0.03305186,223.25,223.21,7.48]